[Event "Titled Tuesday Blitz May 23 Early 2023"]
[White "Ciuffoletti, Paolo"]
[Black "Herzog2012"]
[WhiteFideId "807630"]
[WhiteElo "2143"]
[BlackElo "2356"]
[Result "1-0"]
[Round "03"]
[TimeControl "180+2"]
[Date "2023.05.23"]
[WhiteClock "0:00:13"]
[BlackClock "0:00:13"]

1. e4 {[%clk 0:03:00]}  c5 {[%clk 0:02:59]} 2. d4 {[%clk 0:02:59]}  cxd4 {[%clk 0:02:59]} 3. c3 {[%clk 0:02:59]}  Nf6 {[%clk 0:02:58]} 4. e5 {[%clk 0:02:58]}  Nd5 {[%clk 0:02:58]} 5. Qxd4 {[%clk 0:02:58]}  e6 {[%clk 0:02:56]} 6. Bc4 {[%clk 0:02:58]}  Nc6 {[%clk 0:02:52]} 7. Qe4 {[%clk 0:02:57]}  f5 {[%clk 0:02:46]} 8. Qe2 {[%clk 0:02:57]}  Nb6 {[%clk 0:02:41]} 9. Bb3 {[%clk 0:02:57]}  g6 {[%clk 0:02:29]} 10. Nf3 {[%clk 0:02:50]}  Bg7 {[%clk 0:02:29]} 11. Na3 {[%clk 0:02:35]}  a6 {[%clk 0:02:26]} 12. O-O {[%clk 0:02:21]}  O-O {[%clk 0:02:24]} 13. Be3 {[%clk 0:02:01]}  Nd5 {[%clk 0:02:00]} 14. Bc5 {[%clk 0:01:47]}  Re8 {[%clk 0:01:55]} 15. Bxd5 {[%clk 0:01:43]}  exd5 {[%clk 0:01:56]} 16. Rad1 {[%clk 0:01:41]}  Nxe5 {[%clk 0:01:51]} 17. Nxe5 {[%clk 0:01:39]}  Rxe5 {[%clk 0:01:49]} 18. Qf3 {[%clk 0:01:35]}  d6 {[%clk 0:01:37]} 19. Rxd5 {[%clk 0:01:30]}  Be6 {[%clk 0:01:32]} 20. Rxd6 {[%clk 0:01:13]}  Qc7 {[%clk 0:01:30]} 21. b4 {[%clk 0:01:08]}  Bd7 {[%clk 0:00:35]} 22. Rfd1 {[%clk 0:00:57]}  Bc6 {[%clk 0:00:34]} 23. Qf4 {[%clk 0:00:51]}  Rae8 {[%clk 0:00:23]} 24. f3 {[%clk 0:00:37]}  Re1+ {[%clk 0:00:16]} 25. Rxe1 {[%clk 0:00:34]}  Rxe1+ {[%clk 0:00:16]} 26. Kf2 {[%clk 0:00:34]}  Be5 {[%clk 0:00:09]} 27. Qg5 {[%clk 0:00:26]}  Bxd6 {[%clk 0:00:08]} 28. Bxd6 {[%clk 0:00:22]}  Qxd6 {[%clk 0:00:04]} 29. Kxe1 {[%clk 0:00:22]}  Qd3 {[%clk 0:00:02]} 30. Qd2 {[%clk 0:00:20]}  Qxd2+ {[%clk 0:00:01]} 31. Kxd2 {[%clk 0:00:20]}  Kf7 {[%clk 0:00:02]} 32. Kd3 {[%clk 0:00:20]}  Ke6 {[%clk 0:00:02]} 33. Nc4 {[%clk 0:00:20]}  Bb5 {[%clk 0:00:02]} 34. Kd4 {[%clk 0:00:20]}  f4 {[%clk 0:00:03]} 35. Na5 {[%clk 0:00:18]}  Bf1 {[%clk 0:00:02]} 36. Nxb7 {[%clk 0:00:18]}  Bxg2 {[%clk 0:00:02]} 37. Ke4 {[%clk 0:00:18]}  g5 {[%clk 0:00:02]} 38. Nc5+ {[%clk 0:00:17]}  Kf6 {[%clk 0:00:03]} 39. Nxa6 {[%clk 0:00:17]}  h5 {[%clk 0:00:02]} 40. b5 {[%clk 0:00:17]}  g4 {[%clk 0:00:01]} 41. Kxf4 {[%clk 0:00:17]}  Bxf3 {[%clk 0:00:02]} 42. b6 {[%clk 0:00:17]}  Be2 {[%clk 0:00:01]} 43. Nc5 {[%clk 0:00:17]}  Bf3 {[%clk 0:00:01]} 44. b7 {[%clk 0:00:17]}  Bxb7 {[%clk 0:00:02]} 45. Nxb7 {[%clk 0:00:17]}  Ke6 {[%clk 0:00:02]} 46. a4 {[%clk 0:00:17]}  Kd5 {[%clk 0:00:02]} 47. a5 {[%clk 0:00:18]}  Kc6 {[%clk 0:00:03]} 48. a6 {[%clk 0:00:18]}  Kb6 {[%clk 0:00:04]} 49. Nd6 {[%clk 0:00:18]}  Kxa6 {[%clk 0:00:04]} 50. Ne4 {[%clk 0:00:18]}  Kb5 {[%clk 0:00:04]} 51. Nf6 {[%clk 0:00:18]}  Kc4 {[%clk 0:00:04]} 52. Nxh5 {[%clk 0:00:18]}  g3 {[%clk 0:00:03]} 53. hxg3 {[%clk 0:00:18]}  Kxc3 {[%clk 0:00:04]} 54. g4 {[%clk 0:00:18]}  Kd4 {[%clk 0:00:05]} 55. g5 {[%clk 0:00:18]}  Kd5 {[%clk 0:00:05]} 56. Kf5 {[%clk 0:00:19]}  Kd6 {[%clk 0:00:05]} 57. Kf6 {[%clk 0:00:19]}  Kd7 {[%clk 0:00:06]} 58. Kf7 {[%clk 0:00:18]}  Kd6 {[%clk 0:00:06]} 59. g6 {[%clk 0:00:18]}  Ke5 {[%clk 0:00:07]} 60. g7 {[%clk 0:00:18]}  Kf5 {[%clk 0:00:08]} 61. g8=Q {[%clk 0:00:17]}  Ke4 {[%clk 0:00:09]} 62. Ke6 {[%clk 0:00:16]}  Ke3 {[%clk 0:00:10]} 63. Qg4 {[%clk 0:00:16]}  Kd3 {[%clk 0:00:10]} 64. Ke5 {[%clk 0:00:16]}  Ke3 {[%clk 0:00:11]} 65. Qh3+ {[%clk 0:00:15]}  Ke2 {[%clk 0:00:11]} 66. Ke4 {[%clk 0:00:14]}  Kf2 {[%clk 0:00:11]} 67. Qf3+ {[%clk 0:00:14]}  Ke1 {[%clk 0:00:12]} 68. Qg2 {[%clk 0:00:13]}  Kd1 {[%clk 0:00:12]} 69. Kd3 {[%clk 0:00:14]}  Kc1 {[%clk 0:00:13]} 70. Qc2# {[%clk 0:00:13]} 1-0


[Site "https://www.chess.com"]

[Event "Titled Tuesday Blitz May 23 Early 2023"]
[White "Klepikov, Nikita"]
[Black "Winkels, Marcel"]
[WhiteFideId "24145220"]
[BlackFideId "1003887"]
[WhiteElo "2025"]
[BlackElo "1900"]
[Result "1-0"]
[Round "03"]
[TimeControl "180+2"]
[Date "2023.05.23"]
[WhiteClock "0:01:11"]
[BlackClock "0:00:48"]

1. e4 {[%clk 0:03:00]}  Nf6 {[%clk 0:02:59]} 2. e5 {[%clk 0:03:00]}  Nd5 {[%clk 0:02:58]} 3. d4 {[%clk 0:03:01]}  d6 {[%clk 0:02:58]} 4. c4 {[%clk 0:03:01]}  Nb6 {[%clk 0:02:58]} 5. exd6 {[%clk 0:03:02]}  cxd6 {[%clk 0:02:56]} 6. Nc3 {[%clk 0:03:02]}  g6 {[%clk 0:02:55]} 7. Be3 {[%clk 0:03:03]}  Bg7 {[%clk 0:02:55]} 8. Rc1 {[%clk 0:03:03]}  O-O {[%clk 0:02:55]} 9. b3 {[%clk 0:03:03]}  Nc6 {[%clk 0:02:54]} 10. d5 {[%clk 0:03:04]}  Ne5 {[%clk 0:02:53]} 11. Be2 {[%clk 0:03:02]}  f5 {[%clk 0:02:46]} 12. Nh3 {[%clk 0:02:23]}  h6 {[%clk 0:02:12]} 13. Qd2 {[%clk 0:01:56]}  g5 {[%clk 0:02:09]} 14. f4 {[%clk 0:01:57]}  g4 {[%clk 0:01:55]} 15. fxe5 {[%clk 0:01:50]}  gxh3 {[%clk 0:01:55]} 16. e6 {[%clk 0:01:46]}  Kh7 {[%clk 0:01:15]} 17. gxh3 {[%clk 0:01:32]}  a5 {[%clk 0:01:12]} 18. Rg1 {[%clk 0:01:24]}  Rg8 {[%clk 0:01:08]} 19. Bh5 {[%clk 0:01:19]}  Qf8 {[%clk 0:01:01]} 20. Bg6+ {[%clk 0:01:14]}  Kh8 {[%clk 0:00:59]} 21. Bf7 {[%clk 0:01:15]}  a4 {[%clk 0:00:48]} 22. Bxb6 {[%clk 0:01:11]} 1-0


[Site "https://www.chess.com"]

[Event "Titled Tuesday Blitz May 23 Early 2023"]
[White "Putri, Regita Desyari"]
[Black "Avalos Parra, Joao"]
[WhiteFideId "7109083"]
[BlackFideId "3402541"]
[WhiteElo "1930"]
[BlackElo "2173"]
[Result "0-1"]
[Round "03"]
[TimeControl "180+2"]
[Date "2023.05.23"]
[WhiteClock "0:00:00"]
[BlackClock "0:00:12"]

1. d4 {[%clk 0:02:58]}  d5 {[%clk 0:02:59]} 2. c4 {[%clk 0:02:58]}  e6 {[%clk 0:02:59]} 3. Nf3 {[%clk 0:02:58]}  Nf6 {[%clk 0:02:59]} 4. g3 {[%clk 0:02:57]}  Bb4+ {[%clk 0:03:00]} 5. Bd2 {[%clk 0:02:57]}  Be7 {[%clk 0:03:00]} 6. Bg2 {[%clk 0:02:56]}  O-O {[%clk 0:03:01]} 7. O-O {[%clk 0:02:56]}  Nbd7 {[%clk 0:03:01]} 8. Qc2 {[%clk 0:02:51]}  c6 {[%clk 0:03:01]} 9. Nc3 {[%clk 0:02:46]}  a5 {[%clk 0:03:02]} 10. a4 {[%clk 0:02:41]}  dxc4 {[%clk 0:03:01]} 11. e4 {[%clk 0:02:38]}  Nb6 {[%clk 0:03:01]} 12. Be3 {[%clk 0:02:29]}  Bd7 {[%clk 0:03:00]} 13. Ne5 {[%clk 0:02:28]}  Qc8 {[%clk 0:02:58]} 14. Rfd1 {[%clk 0:02:26]}  c5 {[%clk 0:02:54]} 15. d5 {[%clk 0:02:25]}  exd5 {[%clk 0:02:53]} 16. exd5 {[%clk 0:02:26]}  Bd6 {[%clk 0:02:49]} 17. f4 {[%clk 0:02:11]}  Re8 {[%clk 0:02:43]} 18. Nxd7 {[%clk 0:01:26]}  Qxd7 {[%clk 0:02:41]} 19. Bf2 {[%clk 0:01:27]}  Ng4 {[%clk 0:02:38]} 20. Nb5 {[%clk 0:01:22]}  Ne3 {[%clk 0:02:15]} 21. Bxe3 {[%clk 0:01:20]}  Rxe3 {[%clk 0:02:16]} 22. Re1 {[%clk 0:01:16]}  Rae8 {[%clk 0:02:13]} 23. Rxe3 {[%clk 0:01:16]}  Rxe3 {[%clk 0:02:14]} 24. Qd2 {[%clk 0:01:16]}  Re8 {[%clk 0:01:48]} 25. Qxa5 {[%clk 0:01:16]}  Nc8 {[%clk 0:01:49]} 26. Qc3 {[%clk 0:01:11]}  Qe7 {[%clk 0:01:37]} 27. Bf1 {[%clk 0:01:02]}  Nb6 {[%clk 0:01:36]} 28. Bg2 {[%clk 0:00:57]}  h5 {[%clk 0:01:29]} 29. h4 {[%clk 0:00:57]}  Nc8 {[%clk 0:00:55]} 30. Qxc4 {[%clk 0:00:45]}  Qe3+ {[%clk 0:00:55]} 31. Kh2 {[%clk 0:00:45]}  Qd2 {[%clk 0:00:46]} 32. Qc3 {[%clk 0:00:41]}  Qe2 {[%clk 0:00:38]} 33. Rc1 {[%clk 0:00:31]}  b6 {[%clk 0:00:34]} 34. Rc2 {[%clk 0:00:30]}  Qd1 {[%clk 0:00:33]} 35. Rd2 {[%clk 0:00:30]}  Qe1 {[%clk 0:00:33]} 36. Rc2 {[%clk 0:00:21]}  Qa1 {[%clk 0:00:26]} 37. b3 {[%clk 0:00:20]}  Qd1 {[%clk 0:00:25]} 38. Qd2 {[%clk 0:00:20]}  Qa1 {[%clk 0:00:23]} 39. Rc1 {[%clk 0:00:18]}  Qf6 {[%clk 0:00:23]} 40. Qd1 {[%clk 0:00:15]}  Re3 {[%clk 0:00:21]} 41. Qxh5 {[%clk 0:00:13]}  Bxf4 {[%clk 0:00:20]} 42. gxf4 {[%clk 0:00:11]}  Qxf4+ {[%clk 0:00:21]} 43. Kg1 {[%clk 0:00:09]}  Re5 {[%clk 0:00:16]} 44. Qd1 {[%clk 0:00:08]}  Qxh4 {[%clk 0:00:16]} 45. Rc3 {[%clk 0:00:07]}  Re1+ {[%clk 0:00:16]} 46. Qxe1 {[%clk 0:00:07]}  Qxe1+ {[%clk 0:00:17]} 47. Kh2 {[%clk 0:00:07]}  Nd6 {[%clk 0:00:16]} 48. Rf3 {[%clk 0:00:03]}  Qh4+ {[%clk 0:00:15]} 49. Rh3 {[%clk 0:00:01]}  Qf4+ {[%clk 0:00:15]} 50. Rg3 {[%clk 0:00:01]}  Nxb5 {[%clk 0:00:16]} 51. axb5 {[%clk 0:00:02]}  g5 {[%clk 0:00:13]} 52. Kh3 {[%clk 0:00:00]}  f5 {[%clk 0:00:12]} 0-1


[Site "https://www.chess.com"]

[Event "Titled Tuesday Blitz May 23 Early 2023"]
[White "Sailer, Mike"]
[Black "Alexikov, Alexander"]
[WhiteFideId "2012901"]
[BlackFideId "14103958"]
[WhiteElo "2109"]
[BlackElo "2186"]
[Result "0-1"]
[Round "03"]
[TimeControl "180+2"]
[Date "2023.05.23"]
[WhiteClock "0:00:02"]
[BlackClock "0:01:03"]

1. d4 {[%clk 0:03:00]}  Nf6 {[%clk 0:02:58]} 2. Bg5 {[%clk 0:02:58]}  e6 {[%clk 0:02:57]} 3. Nd2 {[%clk 0:02:57]}  h6 {[%clk 0:02:56]} 4. Bh4 {[%clk 0:02:57]}  Be7 {[%clk 0:02:55]} 5. e4 {[%clk 0:02:54]}  d6 {[%clk 0:02:54]} 6. Bd3 {[%clk 0:02:48]}  e5 {[%clk 0:02:52]} 7. c3 {[%clk 0:02:44]}  Nc6 {[%clk 0:02:51]} 8. d5 {[%clk 0:02:43]}  Nb8 {[%clk 0:02:50]} 9. Ne2 {[%clk 0:02:37]}  Nxd5 {[%clk 0:02:47]} 10. Bxe7 {[%clk 0:02:33]}  Nxe7 {[%clk 0:02:46]} 11. O-O {[%clk 0:02:29]}  Nbc6 {[%clk 0:02:45]} 12. h3 {[%clk 0:02:28]}  Ng6 {[%clk 0:02:43]} 13. Ng3 {[%clk 0:02:18]}  Nf4 {[%clk 0:02:40]} 14. Bc4 {[%clk 0:02:16]}  g6 {[%clk 0:02:38]} 15. a3 {[%clk 0:02:09]}  h5 {[%clk 0:02:32]} 16. Re1 {[%clk 0:02:02]}  h4 {[%clk 0:02:29]} 17. Ngf1 {[%clk 0:02:01]}  Qg5 {[%clk 0:02:27]} 18. Ne3 {[%clk 0:01:19]}  Bxh3 {[%clk 0:02:20]} 19. Nf3 {[%clk 0:01:09]}  Qh5 {[%clk 0:02:10]} 20. gxh3 {[%clk 0:01:02]}  Nxh3+ {[%clk 0:02:09]} 21. Kh2 {[%clk 0:00:49]}  Nf4 {[%clk 0:02:09]} 22. Nd5 {[%clk 0:00:43]}  Nxd5 {[%clk 0:01:59]} 23. Bxd5 {[%clk 0:00:43]}  O-O-O {[%clk 0:01:54]} 24. Bxc6 {[%clk 0:00:43]}  bxc6 {[%clk 0:01:53]} 25. Ng1 {[%clk 0:00:35]}  Qg5 {[%clk 0:01:51]} 26. Qf3 {[%clk 0:00:32]}  f5 {[%clk 0:01:48]} 27. Nh3 {[%clk 0:00:31]}  Qf6 {[%clk 0:01:44]} 28. Rg1 {[%clk 0:00:26]}  Rh5 {[%clk 0:01:41]} 29. Rg2 {[%clk 0:00:25]}  Rf8 {[%clk 0:01:33]} 30. exf5 {[%clk 0:00:23]}  Rxf5 {[%clk 0:01:31]} 31. Qxc6 {[%clk 0:00:20]}  g5 {[%clk 0:01:22]} 32. Qa6+ {[%clk 0:00:13]}  Kd8 {[%clk 0:01:20]} 33. Qxa7 {[%clk 0:00:07]}  Rf3 {[%clk 0:01:18]} 34. Qb8+ {[%clk 0:00:07]}  Kd7 {[%clk 0:01:16]} 35. Qb5+ {[%clk 0:00:07]}  Ke7 {[%clk 0:01:15]} 36. Nxg5 {[%clk 0:00:02]}  Rxf2 {[%clk 0:01:09]} 37. Rg1 {[%clk 0:00:01]}  Qxg5 {[%clk 0:01:07]} 38. Qc6 {[%clk 0:00:01]}  Qg3+ {[%clk 0:01:05]} 39. Kh1 {[%clk 0:00:02]}  Qh3+ {[%clk 0:01:04]} 40. Rh2 {[%clk 0:00:02]}  Qxh2# {[%clk 0:01:03]} 0-1


[Site "https://www.chess.com"]

[Event "Titled Tuesday Blitz May 23 Early 2023"]
[White "chessjazda"]
[Black "Kriti Mayur Patel"]
[BlackFideId "35061780"]
[WhiteElo "2325"]
[BlackElo "1306"]
[Result "1/2-1/2"]
[Round "03"]
[TimeControl "180+2"]
[Date "2023.05.23"]
[WhiteClock "0:00:49"]
[BlackClock "0:00:39"]

1. e4 {[%clk 0:02:44]}  e5 {[%clk 0:02:59]} 2. Nf3 {[%clk 0:02:44]}  Nc6 {[%clk 0:02:58]} 3. Bc4 {[%clk 0:02:43]}  Nf6 {[%clk 0:02:58]} 4. Nc3 {[%clk 0:02:42]}  Nxe4 {[%clk 0:02:58]} 5. Bxf7+ {[%clk 0:02:41]}  Kxf7 {[%clk 0:02:58]} 6. Nxe4 {[%clk 0:02:41]}  d5 {[%clk 0:02:58]} 7. Neg5+ {[%clk 0:02:40]}  Kg8 {[%clk 0:02:59]} 8. d4 {[%clk 0:02:37]}  h6 {[%clk 0:02:55]} 9. Nh3 {[%clk 0:02:35]}  Bg4 {[%clk 0:02:50]} 10. dxe5 {[%clk 0:02:33]}  Nxe5 {[%clk 0:02:50]} 11. O-O {[%clk 0:02:31]}  Nxf3+ {[%clk 0:02:49]} 12. Kh1 {[%clk 0:02:22]}  Ne5 {[%clk 0:02:46]} 13. Qd4 {[%clk 0:02:12]}  Bxh3 {[%clk 0:02:28]} 14. Qxe5 {[%clk 0:02:12]}  Bg4 {[%clk 0:02:21]} 15. f3 {[%clk 0:02:09]}  Bd7 {[%clk 0:02:00]} 16. Qxd5+ {[%clk 0:02:08]}  Kh7 {[%clk 0:02:00]} 17. Qe4+ {[%clk 0:02:07]}  g6 {[%clk 0:01:56]} 18. Bf4 {[%clk 0:02:07]}  Bf5 {[%clk 0:01:54]} 19. Qxb7 {[%clk 0:02:06]}  Bd6 {[%clk 0:01:50]} 20. Rad1 {[%clk 0:02:02]}  Qd7 {[%clk 0:01:47]} 21. Bxd6 {[%clk 0:01:56]}  cxd6 {[%clk 0:01:47]} 22. Qxd7+ {[%clk 0:01:56]}  Bxd7 {[%clk 0:01:46]} 23. Rxd6 {[%clk 0:01:57]}  Bf5 {[%clk 0:01:47]} 24. c4 {[%clk 0:01:53]}  Rab8 {[%clk 0:01:43]} 25. b3 {[%clk 0:01:53]}  Rhc8 {[%clk 0:01:42]} 26. g4 {[%clk 0:01:51]}  Bc2 {[%clk 0:01:33]} 27. Rc1 {[%clk 0:01:50]}  Bxb3 {[%clk 0:01:29]} 28. axb3 {[%clk 0:01:50]}  Rxb3 {[%clk 0:01:29]} 29. Rd7+ {[%clk 0:01:50]}  Kg8 {[%clk 0:01:28]} 30. Rxa7 {[%clk 0:01:50]}  Rxf3 {[%clk 0:01:28]} 31. c5 {[%clk 0:01:45]}  Rf6 {[%clk 0:01:25]} 32. Kg2 {[%clk 0:01:44]}  Rfc6 {[%clk 0:01:25]} 33. Ra5 {[%clk 0:01:43]}  Kf7 {[%clk 0:01:25]} 34. Kg3 {[%clk 0:01:43]}  Kf6 {[%clk 0:01:25]} 35. h4 {[%clk 0:01:42]}  Ke5 {[%clk 0:01:25]} 36. Re1+ {[%clk 0:01:38]}  Kf6 {[%clk 0:01:22]} 37. Rc1 {[%clk 0:01:36]}  Ke5 {[%clk 0:01:22]} 38. Rc2 {[%clk 0:01:23]}  Rd8 {[%clk 0:01:21]} 39. Rc3 {[%clk 0:01:20]}  Kd4 {[%clk 0:01:16]} 40. Raa3 {[%clk 0:01:20]}  Rd5 {[%clk 0:01:15]} 41. Rd3+ {[%clk 0:01:19]}  Ke4 {[%clk 0:01:13]} 42. Re3+ {[%clk 0:01:19]}  Kd4 {[%clk 0:01:12]} 43. Rad3+ {[%clk 0:01:15]}  Kxc5 {[%clk 0:01:13]} 44. Rc3+ {[%clk 0:01:14]}  Kd6 {[%clk 0:01:11]} 45. Ra3 {[%clk 0:01:10]}  Rd4 {[%clk 0:01:07]} 46. Rad3 {[%clk 0:01:02]}  Rc4 {[%clk 0:01:04]} 47. Kf3 {[%clk 0:01:00]}  Kc5 {[%clk 0:00:54]} 48. Re5+ {[%clk 0:01:00]}  Kd6 {[%clk 0:00:52]} 49. Ree3 {[%clk 0:00:59]}  Rxd3 {[%clk 0:00:48]} 50. Rxd3+ {[%clk 0:00:59]}  Ke5 {[%clk 0:00:49]} 51. Re3+ {[%clk 0:00:59]}  Kf6 {[%clk 0:00:48]} 52. Ra3 {[%clk 0:00:59]}  Rc6 {[%clk 0:00:45]} 53. Kg3 {[%clk 0:00:58]}  Rd6 {[%clk 0:00:44]} 54. h5 {[%clk 0:00:58]}  gxh5 {[%clk 0:00:43]} 55. gxh5 {[%clk 0:00:58]}  Rd5 {[%clk 0:00:41]} 56. Kh4 {[%clk 0:00:53]}  Rd4+ {[%clk 0:00:40]} 57. Kg3 {[%clk 0:00:54]}  Rd5 {[%clk 0:00:40]} 58. Kg4 {[%clk 0:00:49]}  Rd4+ {[%clk 0:00:40]} 59. Kg3 {[%clk 0:00:49]}  Rd5 {[%clk 0:00:39]} 1/2-1/2


[Site "https://www.chess.com"]

[Event "Titled Tuesday Blitz May 23 Early 2023"]
[White "ChesscularGodofchess"]
[Black "Buscar, Michael"]
[BlackFideId "2603616"]
[WhiteElo "2081"]
[BlackElo "2010"]
[Result "1-0"]
[Round "03"]
[TimeControl "180+2"]
[Date "2023.05.23"]
[WhiteClock "0:00:48"]
[BlackClock "0:00:01"]

1. d4 {[%clk 0:03:00]}  d5 {[%clk 0:02:43]} 2. Nf3 {[%clk 0:02:56]}  Nf6 {[%clk 0:02:40]} 3. Nbd2 {[%clk 0:02:56]}  g6 {[%clk 0:02:39]} 4. e3 {[%clk 0:02:56]}  Bg7 {[%clk 0:02:39]} 5. b4 {[%clk 0:02:57]}  O-O {[%clk 0:02:39]} 6. Bb2 {[%clk 0:02:57]}  a5 {[%clk 0:02:39]} 7. b5 {[%clk 0:02:57]}  c6 {[%clk 0:02:36]} 8. c4 {[%clk 0:02:56]}  Bg4 {[%clk 0:02:32]} 9. a4 {[%clk 0:02:54]}  Ne4 {[%clk 0:02:29]} 10. Be2 {[%clk 0:02:46]}  c5 {[%clk 0:02:17]} 11. cxd5 {[%clk 0:02:27]}  Nxd2 {[%clk 0:02:05]} 12. Qxd2 {[%clk 0:02:27]}  Qxd5 {[%clk 0:02:04]} 13. O-O {[%clk 0:02:19]}  Rd8 {[%clk 0:01:59]} 14. Rfd1 {[%clk 0:02:18]}  Nd7 {[%clk 0:01:51]} 15. h3 {[%clk 0:02:14]}  Be6 {[%clk 0:01:42]} 16. Ra3 {[%clk 0:01:25]}  c4 {[%clk 0:00:23]} 17. Rc3 {[%clk 0:01:22]}  Nb6 {[%clk 0:00:23]} 18. Ra1 {[%clk 0:01:16]}  Bf5 {[%clk 0:00:21]} 19. Nh2 {[%clk 0:01:12]}  e5 {[%clk 0:00:18]} 20. Bf3 {[%clk 0:01:07]}  Be4 {[%clk 0:00:18]} 21. Bxe4 {[%clk 0:01:06]}  Qxe4 {[%clk 0:00:18]} 22. Nf3 {[%clk 0:01:06]}  exd4 {[%clk 0:00:17]} 23. exd4 {[%clk 0:01:06]}  Bxd4 {[%clk 0:00:17]} 24. Nxd4 {[%clk 0:01:00]}  Rxd4 {[%clk 0:00:16]} 25. Qh6 {[%clk 0:01:00]}  Rad8 {[%clk 0:00:14]} 26. Rcc1 {[%clk 0:00:56]}  Qe2 {[%clk 0:00:06]} 27. Bxd4 {[%clk 0:00:54]}  Rxd4 {[%clk 0:00:06]} 28. Re1 {[%clk 0:00:53]}  Re4 {[%clk 0:00:02]} 29. Rxe2 {[%clk 0:00:53]}  Rxe2 {[%clk 0:00:03]} 30. Rd1 {[%clk 0:00:53]}  Re8 {[%clk 0:00:03]} 31. Qc1 {[%clk 0:00:49]}  Rc8 {[%clk 0:00:02]} 32. Qc3 {[%clk 0:00:48]}  Nxa4 {[%clk 0:00:02]} 33. Qxa5 {[%clk 0:00:49]}  Nc5 {[%clk 0:00:01]} 34. Rd8+ {[%clk 0:00:47]}  Rxd8 {[%clk 0:00:01]} 35. Qxd8+ {[%clk 0:00:48]}  Kg7 {[%clk 0:00:01]} 36. Qd4+ {[%clk 0:00:48]} 1-0


[Site "https://www.chess.com"]

[Event "Titled Tuesday Blitz May 23 Early 2023"]
[White "Aung Thant Zin"]
[Black "Yanayt, Eugene"]
[WhiteFideId "13000063"]
[BlackFideId "2020165"]
[WhiteElo "2278"]
[BlackElo "2083"]
[Result "0-1"]
[Round "03"]
[TimeControl "180+2"]
[Date "2023.05.23"]
[WhiteClock "0:00:00"]
[BlackClock "0:01:01"]

1. e4 {[%clk 0:02:58]}  c5 {[%clk 0:02:54]} 2. Nf3 {[%clk 0:02:58]}  d6 {[%clk 0:02:54]} 3. Bb5+ {[%clk 0:02:58]}  Bd7 {[%clk 0:02:53]} 4. Bxd7+ {[%clk 0:02:58]}  Qxd7 {[%clk 0:02:54]} 5. O-O {[%clk 0:02:58]}  Nf6 {[%clk 0:02:53]} 6. Re1 {[%clk 0:02:58]}  Nc6 {[%clk 0:02:53]} 7. c3 {[%clk 0:02:58]}  e6 {[%clk 0:02:50]} 8. d4 {[%clk 0:02:58]}  cxd4 {[%clk 0:02:51]} 9. cxd4 {[%clk 0:02:58]}  d5 {[%clk 0:02:52]} 10. e5 {[%clk 0:02:57]}  Ne4 {[%clk 0:02:52]} 11. Nbd2 {[%clk 0:02:57]}  Nxd2 {[%clk 0:02:51]} 12. Bxd2 {[%clk 0:02:57]}  Be7 {[%clk 0:02:50]} 13. Rc1 {[%clk 0:02:57]}  O-O {[%clk 0:02:49]} 14. a3 {[%clk 0:02:55]}  Rfc8 {[%clk 0:02:46]} 15. Bc3 {[%clk 0:02:48]}  b6 {[%clk 0:02:40]} 16. Qd3 {[%clk 0:02:47]}  Na5 {[%clk 0:02:36]} 17. Bxa5 {[%clk 0:02:46]}  bxa5 {[%clk 0:02:35]} 18. Rc3 {[%clk 0:02:37]}  Qa4 {[%clk 0:02:31]} 19. Rec1 {[%clk 0:02:32]}  Rcb8 {[%clk 0:02:27]} 20. R1c2 {[%clk 0:02:24]}  h6 {[%clk 0:02:19]} 21. h4 {[%clk 0:02:17]}  Qe8 {[%clk 0:02:02]} 22. g4 {[%clk 0:02:14]}  Qd8 {[%clk 0:01:57]} 23. g5 {[%clk 0:01:53]}  hxg5 {[%clk 0:01:56]} 24. hxg5 {[%clk 0:01:53]}  Bxg5 {[%clk 0:01:55]} 25. Kg2 {[%clk 0:01:51]}  Bf4 {[%clk 0:01:46]} 26. Qf1 {[%clk 0:01:40]}  f6 {[%clk 0:01:40]} 27. Qh1 {[%clk 0:01:32]}  fxe5 {[%clk 0:01:36]} 28. Qh3 {[%clk 0:01:01]}  Qf6 {[%clk 0:01:31]} 29. dxe5 {[%clk 0:00:52]}  Bxe5 {[%clk 0:01:30]} 30. Re3 {[%clk 0:00:46]}  Qg6+ {[%clk 0:01:27]} 31. Kf1 {[%clk 0:00:39]}  Qxc2 {[%clk 0:01:26]} 32. Qxe6+ {[%clk 0:00:39]}  Kh8 {[%clk 0:01:24]} 33. Nxe5 {[%clk 0:00:39]}  Qd1+ {[%clk 0:01:15]} 34. Kg2 {[%clk 0:00:38]}  Rb3 {[%clk 0:01:04]} 35. Qh3+ {[%clk 0:00:29]}  Kg8 {[%clk 0:01:04]} 36. Rxb3 {[%clk 0:00:27]}  Re8 {[%clk 0:01:03]} 37. Nf3 {[%clk 0:00:00]}  Qxb3 {[%clk 0:01:01]} 0-1


[Site "https://www.chess.com"]